bitfinex-derivatives/quotes_BTCF0:USTF0_20241218
["timestamp","ask_amount","ask_price","bid_price","bid_amount"]
[1734558875082,0.42334987,101150.0,101140.0,0.13463139]
[1734558878594,0.46241311,101150.0,101140.0,0.13463139]
[1734558878791,0.10161311,101150.0,101140.0,0.13463139]
[1734558879187,0.10161311,101150.0,101140.0,0.22837175]
[1734558879689,0.01308587,101150.0,101140.0,0.22837175]
[1734558879890,0.00307317,101150.0,101140.0,0.58917175]
[1734558880191,0.147866,101170.0,101150.0,0.049463]
[1734558880383,0.17845235,101180.0,101170.0,0.049454]
[1734558880587,0.55191198,101200.0,101170.0,0.50399436]
[1734558880588,0.05933538,101200.0,101170.0,0.50399436]
[1734558880894,0.3608,101210.0,101190.0,0.45454036]
[1734558881093,0.410235,101210.0,101200.0,0.14317936]
[1734558881288,0.41035664,101210.0,101200.0,0.14695106]
[1734558881485,0.04955664,101210.0,101200.0,0.0532107]
[1734558883189,0.05055664,101210.0,101200.0,0.0532107]
[1734558883583,0.05055664,101210.0,101200.0,0.05318763]
[1734558883889,0.04955664,101210.0,101200.0,0.05318763]
[1734558884090,0.05255664,101210.0,101200.0,0.05318763]
[1734558884487,0.00312164,101210.0,101200.0,0.14692799]
[1734558884694,0.05255564,101210.0,101200.0,0.05318763]
[1734558886083,0.05255564,101210.0,101200.0,0.00374863]
[1734558886288,0.507096,101210.0,101200.0,0.00374863]
[1734558886493,0.507096,101210.0,101200.0,0.00373249]
[1734558886694,0.049444,101190.0,101180.0,0.00012526]
[1734558886893,0.410244,101190.0,101180.0,0.00012526]
[1734558887100,0.410244,101190.0,101180.0,0.04957426]
[1734558887301,0.410244,101190.0,101180.0,0.14331462]
[1734558887601,0.410244,101190.0,101180.0,0.00012526]
[1734558887791,0.410244,101190.0,101180.0,0.00212526]
[1734558887992,0.411244,101190.0,101180.0,0.00312526]
[1734558888900,0.411744,101190.0,101180.0,0.00312526]
[1734558889100,0.412744,101190.0,101180.0,0.00212526]
[1734558889499,0.412744,101190.0,101180.0,0.05157426]
[1734558889796,0.3633,101190.0,101180.0,0.14531462]
[1734558890099,0.003,101190.0,101180.0,0.14331462]
[1734558890494,0.3638,101190.0,101180.0,0.14331462]
[1734558890788,0.3628,101190.0,101180.0,0.14331462]
[1734558891101,0.3638,101190.0,101180.0,0.14331462]
[1734558891294,0.001,101190.0,101180.0,0.14331462]
[1734558891491,0.003,101190.0,101180.0,0.50411462]
[1734558891697,0.003,101190.0,101180.0,0.80411462]
[1734558891995,0.003,101190.0,101180.0,0.67791462]
[1734558892198,0.003,101190.0,101180.0,0.31711462]
[1734558892501,0.001,101190.0,101180.0,0.67891462]
[1734558893003,0.049441,101200.0,101190.0,0.049444]
[1734558894203,0.050441,101200.0,101190.0,0.049444]
[1734558894401,0.001,101200.0,101190.0,0.14318436]
[1734558894601,0.001,101200.0,101190.0,0.89772472]
[1734558895299,0.003,101200.0,101190.0,0.80398436]
[1734558895807,0.00062164,101210.0,101200.0,0.049439]
[1734558895999,0.00062164,101210.0,101200.0,0.57757936]
[1734558896995,0.00162164,101210.0,101200.0,0.57757936]
[1734558897804,0.00362164,101210.0,101200.0,0.57757936]
[1734558898702,0.00362164,101210.0,101200.0,0.58131916]
[1734558899503,0.05305564,101210.0,101200.0,0.4875788]
[1734558899702,0.00362164,101210.0,101200.0,0.50771916]
[1734558900202,0.00362164,101210.0,101200.0,0.80771916]
[1734558900501,0.0812,101230.0,101220.0,0.049429]
[1734558900704,0.0812,101230.0,101220.0,0.14690916]
[1734558901301,0.08125155,101230.0,101220.0,0.14690916]
[1734558902008,0.08425155,101230.0,101220.0,0.0531688]
[1734558903995,0.58821591,101230.0,101190.0,0.3608]
[1734558904302,0.049444,101190.0,101180.0,0.57738825]
[1734558904508,0.410244,101190.0,101180.0,0.52794025]
[1734558904704,0.41029555,101190.0,101180.0,0.52794025]
[1734558905505,0.41129555,101190.0,101180.0,0.53394025]
[1734558905707,0.50503591,101190.0,101170.0,0.00148265]
[1734558905907,0.50398936,101180.0,101170.0,0.00148265]
[1734558906904,0.410249,101180.0,101170.0,0.00148265]
[1734558907710,0.410249,101180.0,101170.0,0.00348265]
[1734558908114,0.049456,101170.0,101150.0,0.049461]
[1734558908311,0.410256,101170.0,101150.0,0.410261]
[1734558908917,0.410256,101170.0,101160.0,0.0005]
[1734558909402,0.50399636,101170.0,101160.0,0.0005]
[1734558909606,0.58489636,101170.0,101160.0,0.0005]
[1734558909808,0.491156,101170.0,101160.0,0.0005]
[1734558910008,0.492156,101170.0,101150.0,0.05246]
[1734558910207,0.3608,101160.0,101150.0,0.05246]
[1734558910408,0.3608,101160.0,101150.0,0.04946]
[1734558910715,0.049463,101150.0,101140.0,0.05982206]
[1734558910914,0.049463,101150.0,101140.0,0.04958846]
[1734558910915,0.410263,101150.0,101140.0,0.04958846]
[1734558911116,0.049463,101150.0,101140.0,0.04958846]
[1734558911325,0.491263,101150.0,101140.0,0.04958846]
[1734558911816,0.4418,101150.0,101140.0,0.04958846]
[1734558912021,0.491263,101150.0,101140.0,0.04958846]
[1734558912510,0.4418,101150.0,101140.0,0.04958846]
[1734558912711,0.4428,101150.0,101140.0,0.04958846]
[1734558913016,0.083,101150.0,101140.0,0.05558846]
[1734558913212,0.002,101150.0,101140.0,0.81012882]
[1734558913408,0.002,101150.0,101140.0,0.96482882]
[1734558913618,0.002,101150.0,101140.0,1.01292901]
[1734558913821,0.002,101150.0,101140.0,0.93192901]
[1734558914308,9.466e-05,101160.0,101140.0,0.93192901]
[1734558914513,9.466e-05,101160.0,101150.0,0.50400336]
[1734558914714,0.485346,101190.0,101170.0,0.049454]
[1734558914915,0.410246,101190.0,101180.0,0.049449]
[1734558915113,0.049449,101180.0,101170.0,0.049452]
[1734558915306,0.049457,101170.0,101150.0,0.41076]
[1734558915513,0.125857,101170.0,101160.0,0.049459]
[1734558915810,0.12593915,101170.0,101160.0,0.049459]
[1734558916021,0.12593915,101170.0,101160.0,0.05324929]
[1734558916608,0.07648215,101170.0,101160.0,0.05324929]
[1734558917015,0.07648215,101170.0,101160.0,0.50778965]
[1734558917321,8.215e-05,101170.0,101160.0,0.50778965]
[1734558917825,0.00108215,101170.0,101160.0,0.50778965]
[1734558918020,0.00108215,101170.0,101160.0,0.51078965]
[1734558918522,0.00108215,101170.0,101160.0,0.55892463]
[1734558920716,1.5e-07,101170.0,101160.0,0.95266499]
[1734558921220,1.5e-07,101170.0,101160.0,1.02866499]
[1734558921815,1.5e-07,101170.0,101160.0,1.2625637]
[1734558922222,1.5e-07,101170.0,101160.0,1.16882334]
[1734558922623,1.5e-07,101170.0,101160.0,1.2625637]
[1734558923827,1.5e-07,101170.0,101160.0,0.9625637]
[1734558924037,1.5e-07,101170.0,101160.0,1.2625637]
[1734558924332,0.13734866,101200.0,101160.0,0.9625637]
[1734558924532,0.49814866,101200.0,101190.0,0.049444]
[1734558924732,0.13734866,101200.0,101190.0,0.05323429]
[1734558925231,0.59188902,101200.0,101190.0,0.00379029]
[1734558925421,0.59488902,101200.0,101190.0,0.00379029]
[1734558926123,0.59488902,101200.0,101170.0,0.049453]
[1734558926124,0.049449,101180.0,101170.0,0.049453]
[1734558926326,0.410249,101180.0,101170.0,0.049453]
[1734558926625,0.3608,101180.0,101170.0,0.049453]
[1734558928023,0.001,101180.0,101170.0,0.006]
[1734558928324,0.001,101180.0,101170.0,0.14919436]
[1734558928518,0.001,101180.0,101170.0,0.50999436]
[1734558928723,0.002,101200.0,101190.0,0.049444]
[1734558928926,0.002,101200.0,101190.0,0.50398436]
[1734558929133,0.50881087,101210.0,101200.0,0.049439]
[1734558929327,0.0005,101210.0,101200.0,0.049439]
[1734558930034,0.7395014,101220.0,101210.0,0.049434]
[1734558930035,0.22721087,101220.0,101210.0,0.049434]
[1734558930327,0.14751087,101220.0,101210.0,0.50397436]
[1734558930723,0.68685587,101240.0,101220.0,0.049424]
[1734558931030,0.68685587,101240.0,101210.0,0.50397436]
[1734558931031,0.63743287,101240.0,101230.0,0.049424]
[1734558931242,0.58801087,101240.0,101230.0,0.14316436]
[1734558931431,0.63742987,101240.0,101230.0,0.049424]
[1734558931835,0.58801087,101240.0,101220.0,0.3608]
[1734558932145,0.049424,101230.0,101220.0,0.049427]
[1734558933048,0.50313542,101240.0,101220.0,0.049427]
[1734558933433,0.3628,101230.0,101200.0,0.55089521]
[1734558933638,0.002,101230.0,101220.0,0.049429]
[1734558934942,0.50063442,101240.0,101230.0,0.049424]
[1734558936040,0.50263442,101240.0,101230.0,0.049424]
[1734558936936,0.50363442,101240.0,101230.0,0.049424]
[1734558938145,0.50363442,101240.0,101230.0,0.05322407]
[1734558940847,0.09341442,101240.0,101230.0,0.19388028]
[1734558941038,0.0832,101240.0,101230.0,0.20003181]
[1734558943145,0.0035,101240.0,101230.0,0.20003181]
[1734558943545,0.0035,101240.0,101230.0,0.56083181]
[1734558943742,0.07948216,101250.0,101230.0,0.56083181]
[1734558943943,0.07948216,101250.0,101240.0,0.19007621]
[1734558944242,0.07948216,101250.0,101240.0,0.20002781]
[1734558945042,0.08048216,101250.0,101240.0,0.20002781]
[1734558945351,0.00448216,101250.0,101240.0,0.20002781]
[1734558945849,0.003,101250.0,101240.0,0.20002781]
[1734558946242,0.003,101250.0,101240.0,0.56082781]
[1734558947052,0.0035,101250.0,101240.0,0.56082781]
[1734558947346,0.0025,101250.0,101240.0,0.56082781]
[1734558947556,0.0025,101250.0,101240.0,0.56182781]
[1734558947938,0.01,101260.0,101250.0,0.049415]
[1734558948151,0.01,101260.0,101250.0,0.62727121]
[1734558948352,0.01,101260.0,101250.0,0.63721806]
[1734558949253,0.012,101260.0,101250.0,0.63721806]
[1734558949455,0.013,101260.0,101250.0,0.63721806]
[1734558949848,0.013,101260.0,101250.0,0.71311806]
[1734558950057,0.012,101260.0,101250.0,0.71311806]
[1734558950251,0.0776,101290.0,101260.0,0.04941]
[1734558950550,0.0776,101290.0,101280.0,0.0494]
[1734558950939,0.0776,101290.0,101280.0,0.05938522]
[1734558950940,0.4384,101290.0,101280.0,0.05938522]
[1734558951140,0.487795,101290.0,101280.0,0.05938522]
[1734558951849,0.488795,101290.0,101280.0,0.05938522]
[1734558952449,0.489795,101290.0,101280.0,0.05938522]
[1734558952851,0.412195,101290.0,101280.0,0.05938522]
[1734558953052,0.3628,101290.0,101280.0,0.05938522]
[1734558954150,0.412195,101290.0,101280.0,0.00998522]
[1734558954459,0.412195,101290.0,101280.0,0.00999459]
[1734558955455,0.412195,101290.0,101280.0,0.10365059]
[1734558955656,0.412195,101290.0,101280.0,0.05939459]
[1734558957056,0.412195,101290.0,101280.0,0.00999459]
[1734558957251,0.0494,101280.0,101270.0,0.049404]
[1734558957452,0.5679,101280.0,101270.0,0.05328671]
[1734558957760,0.5679,101280.0,101270.0,0.00388271]
[1734558958064,0.5684,101280.0,101270.0,0.00388271]
[1734558958359,0.5694,101280.0,101270.0,0.00388271]
[1734558958553,0.5704,101280.0,101270.0,0.00388271]
[1734558958954,0.68825134,101280.0,101270.0,0.00388271]
[1734558959153,0.68775134,101280.0,101270.0,0.00388271]
[1734558961754,0.68775134,101280.0,101260.0,0.192469]
[1734558962759,0.68675134,101280.0,101260.0,0.192469]
[1734558962958,0.68775134,101280.0,101260.0,0.192469]
[1734558963159,0.5699,101280.0,101260.0,0.143062]
[1734558963461,0.3608,101270.0,101260.0,0.143062]
[1734558963662,0.5699,101280.0,101260.0,0.143062]
[1734558964058,0.68775134,101280.0,101260.0,0.143062]
[1734558964257,0.4401,101270.0,101260.0,0.143062]
[1734558964457,0.0793,101270.0,101260.0,0.15352662]
[1734558964653,0.0803,101270.0,101260.0,0.15352662]
[1734558965953,0.0793,101270.0,101260.0,0.143062]
[1734558966565,0.0803,101270.0,101260.0,0.143062]
[1734558966968,0.4411,101270.0,101260.0,0.143062]
[1734558967154,0.490505,101270.0,101260.0,0.143062]
[1734558967659,0.129705,101270.0,101260.0,0.143062]
[1734558967964,0.0803,101270.0,101260.0,0.143062]
[1734558968157,0.19815134,101270.0,101260.0,0.143062]
[1734558968553,0.19815134,101270.0,101260.0,0.15352662]
[1734558969158,0.0803,101270.0,101260.0,0.15352662]
[1734558969367,0.0803,101270.0,101260.0,0.15731938]
[1734558969766,0.0803,101270.0,101260.0,0.06366338]
[1734558969967,0.4411,101270.0,101260.0,0.06366338]
[1734558970268,0.55895134,101270.0,101260.0,0.06366338]
[1734558971156,0.55895134,101270.0,101260.0,0.06366801]
[1734558971761,0.52806858,101270.0,101260.0,0.06366801]
[1734558971960,0.57747358,101270.0,101260.0,0.06366801]
[1734558973274,1.17944045,101270.0,101260.0,0.00379739]
[1734558973565,1.47944045,101270.0,101260.0,0.00379739]
[1734558973777,1.08578445,101270.0,101260.0,0.00379739]
[1734558973964,1.08578445,101270.0,101260.0,0.01507764]
[1734558974159,1.09562124,101270.0,101260.0,0.14686339]
[1734558974558,0.37402124,101270.0,101260.0,0.14686339]
[1734558974871,0.37402124,101270.0,101260.0,0.06448764]
[1734558975067,0.73482124,101270.0,101260.0,0.06448764]
[1734558975268,0.55772811,101270.0,101260.0,0.23564364]
[1734558975566,0.55772811,101270.0,101260.0,0.28377944]
[1734558976163,0.67604465,101270.0,101260.0,0.28377944]
[1734558977565,0.26682741,101270.0,101260.0,0.27249919]
[1734558977767,0.11931654,101270.0,101260.0,1.01987944]
[1734558978362,0.11931654,101270.0,101260.0,1.00859919]
[1734558978572,0.11931654,101270.0,101260.0,0.71860446]
[1734558978962,0.11931654,101270.0,101260.0,1.01252074]
[1734558978963,0.001,101270.0,101260.0,1.01252074]
[1734558979359,0.001,101270.0,101260.0,1.31252074]
[1734558979669,0.001,101270.0,101260.0,1.32375086]
[1734558980769,0.001,101270.0,101260.0,1.02375086]
[1734558981170,0.3618,101270.0,101260.0,0.49399486]
[1734558981366,0.050405,101270.0,101260.0,0.55277812]
[1734558981563,0.411205,101270.0,101260.0,0.5314926]
[1734558982073,0.52952154,101270.0,101260.0,0.17879306]
[1734558983874,0.48011654,101270.0,101260.0,0.17879306]
[1734558984267,0.11931654,101270.0,101260.0,0.27244906]
[1734558984768,0.11931654,101270.0,101260.0,0.71144906]
[1734558985274,0.11931654,101270.0,101260.0,0.71146832]
[1734558985475,0.08843838,101270.0,101260.0,1.01634502]
[1734558986374,0.63790787,101290.0,101260.0,1.36904456]
[1734558986574,0.63790787,101290.0,101280.0,0.0494]
[1734558986877,0.63790787,101290.0,101280.0,0.10130232]
[1734558987178,0.63790787,101290.0,101280.0,0.10143909]
[1734558987567,0.63890787,101290.0,101280.0,0.10143909]
[1734558988171,0.63890787,101290.0,101280.0,0.10139105]
[1734558988570,0.63990787,101290.0,101280.0,0.10139105]
[1734558989865,0.492397,101290.0,101280.0,0.10139105]
[1734558990978,0.492397,101290.0,101280.0,0.1013946]
[1734558993173,0.492397,101290.0,101280.0,0.0519946]
[1734558994476,0.492397,101290.0,101280.0,0.1013946]
[1734558994682,0.492397,101290.0,101280.0,0.1950506]
[1734558994889,0.443,101290.0,101280.0,0.1950506]
[1734558997280,0.3628,101290.0,101280.0,0.1950506]
[1734558997485,0.002,101290.0,101280.0,0.6495066]
[1734558997679,0.002,101290.0,101280.0,0.64403085]
[1734558997873,0.24751087,101300.0,101280.0,0.64403085]
[1734558998077,0.24801087,101300.0,101290.0,0.143051]
[1734558998279,0.1005,101300.0,101290.0,0.2698456]
[1734558998585,0.1005,101300.0,101290.0,0.17246757]
[1734558999183,0.101,101300.0,101290.0,0.17246757]
[1734558999574,0.101,101300.0,101290.0,0.17615571]
[1734558999784,0.102,101300.0,101290.0,0.17615571]
[1734559001282,0.102,101300.0,101290.0,0.10135571]
[1734559001483,0.19065654,101300.0,101290.0,0.10135571]
[1734559002689,0.102,101300.0,101290.0,0.19501171]
[1734559003090,0.102,101300.0,101290.0,0.26881171]
[1734559003881,0.102,101300.0,101290.0,0.10135571]
[1734559004090,0.4628,101300.0,101290.0,0.05308314]
[1734559004491,0.51219,101300.0,101290.0,0.05308314]
[1734559004791,0.60084654,101300.0,101290.0,0.05308314]
[1734559005794,0.59984654,101300.0,101290.0,0.05308314]
[1734559006487,0.59984654,101300.0,101280.0,0.44669986]
[1734559006488,0.99350254,101300.0,101280.0,0.29359645]
[1734559006695,0.578352,101290.0,101280.0,0.29729115]
[1734559006895,0.484696,101290.0,101280.0,0.34556755]
[1734559007090,0.484696,101290.0,101280.0,0.34187285]
[1734559008086,0.57335254,101290.0,101280.0,0.0482764]
[1734559008488,0.57435254,101290.0,101280.0,0.0482764]
[1734559008692,0.52495654,101290.0,101280.0,0.1933324]
[1734559008991,0.45045654,101290.0,101280.0,0.1933324]
[1734559009397,0.45045654,101290.0,101280.0,0.2689324]
[1734559010407,0.3618,101290.0,101280.0,0.56252885]
[1734559010713,0.001,101290.0,101280.0,0.87505245]
[1734559010909,0.001,101290.0,101280.0,0.9233717]
[1734559011605,0.08965654,101290.0,101280.0,0.62977525]
[1734559011805,0.08965654,101290.0,101280.0,0.63989827]
[1734559012313,0.08965654,101290.0,101280.0,0.73355427]
[1734559012514,0.001,101290.0,101280.0,0.93349472]
[1734559014609,0.411196,101290.0,101280.0,0.05031925]
[1734559014809,0.488796,101290.0,101280.0,0.05031925]
[1734559016109,0.49872815,101290.0,101280.0,0.05031925]
[1734559016804,0.58738469,101290.0,101280.0,0.05031925]
[1734559017213,0.58738469,101290.0,101280.0,0.002]
[1734559018417,0.49872815,101290.0,101280.0,0.002]
[1734559018618,0.49872815,101290.0,101280.0,0.00569637]
[1734559019116,0.89238415,101290.0,101270.0,0.29439264]
[1734559019316,0.687612,101280.0,101270.0,0.0893015]
[1734559019511,0.049405,101270.0,101260.0,0.34719954]
[1734559019707,0.503861,101270.0,101260.0,0.39558071]
[1734559020018,0.049415,101250.0,101240.0,0.58167234]
[1734559020217,0.7216,101250.0,101240.0,0.63005968]
[1734559020413,0.7216,101250.0,101240.0,0.67947968]
[1734559020613,0.7216,101250.0,101240.0,0.10904734]
[1734559021115,0.3608,101250.0,101240.0,0.10904734]
[1734559021510,0.410211,101260.0,101240.0,0.11504734]
[1734559021712,0.08866037,101250.0,101240.0,0.20870334]
[1734559022113,0.50831087,101260.0,101250.0,0.049415]
[1734559022114,0.14751087,101260.0,101250.0,0.049415]
[1734559022318,0.53789313,101270.0,101250.0,0.72331434]
[1734559022516,0.3248518,101270.0,101260.0,0.503866]
[1734559022711,0.3248518,101270.0,101260.0,0.55225334]
[1734559023112,0.3248518,101270.0,101260.0,0.19145334]
[1734559023316,0.3248518,101270.0,101260.0,0.55225334]
[1734559023631,0.02119132,101280.0,101270.0,0.049405]
[1734559023632,0.38050949,101280.0,101270.0,0.049405]
[1734559023815,0.38050949,101280.0,101270.0,0.19144834]
[1734559024726,0.3708,101280.0,101270.0,0.19144834]
[1734559024927,0.01,101280.0,101270.0,0.19144834]
[1734559025224,0.3718,101280.0,101270.0,0.19144834]
[1734559025622,0.3718,101280.0,101270.0,0.26324834]
[1734559025623,0.011,101280.0,101270.0,0.26324834]
[1734559026620,0.4212,101280.0,101270.0,0.17159234]
[1734559026825,0.4212,101280.0,101270.0,0.05038734]
[1734559027125,0.4212,101280.0,101270.0,0.002]
[1734559027717,0.4212,101280.0,101270.0,0.051405]
[1734559029119,0.4212,101280.0,101270.0,0.09924922]
[1734559029325,0.4212,101280.0,101270.0,0.053405]
[1734559030119,0.4212,101280.0,101270.0,0.004]
[1734559030620,0.0604,101280.0,101270.0,0.004]
[1734559030826,0.814856,101280.0,101270.0,0.004]
[1734559031424,0.4212,101280.0,101270.0,0.004]
[1734559032429,0.011,101280.0,101270.0,0.053405]
[1734559032625,0.421201,101280.0,101270.0,0.053405]
[1734559033319,0.421201,101280.0,101270.0,0.004]
[1734559033518,0.814857,101280.0,101270.0,0.004]
[1734559033929,0.721201,101280.0,101270.0,0.004]
[1734559035422,0.421201,101280.0,101270.0,0.004]
[1734559035622,0.721201,101280.0,101270.0,0.004]
[1734559036222,0.421201,101280.0,101270.0,0.004]
[1734559036421,0.721201,101280.0,101270.0,0.004]
[1734559036617,0.421201,101280.0,101270.0,0.004]
[1734559036822,0.721201,101280.0,101270.0,0.004]
[1734559037539,0.421201,101280.0,101270.0,0.004]
[1734559041032,0.44107869,101280.0,101270.0,0.097656]
[1734559041237,0.421201,101280.0,101270.0,0.147061]
[1734559041735,0.060401,101280.0,101270.0,0.147061]
[1734559041926,0.060401,101280.0,101270.0,0.225661]
[1734559042133,0.421201,101280.0,101270.0,0.225661]
[1734559042728,0.060401,101280.0,101270.0,0.225661]
[1734559044737,0.421201,101280.0,101270.0,0.225661]
[1734559044934,0.3718,101280.0,101270.0,0.225661]
[1734559045333,0.3718,101280.0,101270.0,0.27355633]
[1734559045637,0.011,101280.0,101270.0,0.27355633]
[1734559046934,0.12928234,101280.0,101270.0,0.27355633]
[1734559047738,0.011,101280.0,101270.0,0.27355633]
[1734559049030,0.3718,101280.0,101270.0,0.27355633]
[1734559049229,0.4212,101280.0,101270.0,0.27355633]
[1734559049433,0.3718,101280.0,101270.0,0.27355633]
[1734559049636,0.011,101280.0,101270.0,0.27355633]
[1734559049927,0.3718,101280.0,101270.0,0.27355633]
[1734559050133,0.49008234,101280.0,101270.0,0.27355633]
[1734559050340,0.53948234,101280.0,101270.0,0.004]
[1734559051527,0.12928234,101280.0,101270.0,0.147061]
[1734559051731,0.12928234,101280.0,101270.0,0.19500104]
[1734559052437,0.49008234,101280.0,101270.0,0.19500104]
[1734559054034,0.12928234,101280.0,101270.0,0.19500104]
[1734559055837,0.3718,101280.0,101270.0,0.19500104]
[1734559056139,0.4212,101280.0,101270.0,0.19500104]
[1734559056341,0.4212,101280.0,101270.0,0.05194004]
[1734559056645,0.53948234,101280.0,101270.0,0.05194004]
[1734559056841,0.53948234,101280.0,101270.0,0.004]
[1734559057943,0.59829313,101280.0,101270.0,0.004]
[1734559061835,0.59729313,101280.0,101270.0,0.004]
[1734559062036,0.74621272,101280.0,101270.0,0.004]
[1734559062447,0.74521272,101280.0,101270.0,0.004]
[1734559062651,0.049405,101270.0,101260.0,0.143066]
[1734559062849,0.410205,101270.0,101260.0,0.19100503]
[1734559064048,0.52853942,101270.0,101260.0,0.19100503]
[1734559064249,0.11833442,101270.0,101260.0,0.19500503]
[1734559064448,0.11833442,101270.0,101260.0,0.55580503]
[1734559064750,0.47913442,101270.0,101260.0,0.19500503]
[1734559064951,0.11833442,101270.0,101260.0,0.19500503]
[1734559065537,0.11933442,101270.0,101260.0,0.19500503]
[1734559065950,0.48013442,101270.0,101260.0,0.19500503]
[1734559066153,0.11933442,101270.0,101260.0,0.19500503]
[1734559072953,0.16873942,101270.0,101260.0,0.19500503]
[1734559073153,0.16873942,101270.0,101260.0,0.05193903]
[1734559073348,0.52953942,101270.0,101260.0,0.05193903]
[1734559075549,0.16873942,101270.0,101260.0,0.46214903]
[1734559075756,0.03996863,101270.0,101260.0,0.94946103]
[1734559075954,0.18709313,101280.0,101270.0,0.049405]
[1734559076253,0.54896519,101300.0,101290.0,0.049396]
[1734559076451,0.54896519,101300.0,101290.0,0.19099103]
[1734559076853,0.46278138,101300.0,101290.0,0.19099103]
[1734559077153,0.47267349,101300.0,101290.0,0.19099103]
[1734559077359,0.11137349,101300.0,101290.0,0.19099103]
[1734559078249,0.11187349,101300.0,101290.0,0.19099103]
[1734559078659,0.11187349,101300.0,101290.0,0.09733503]
[1734559078862,0.11239211,101300.0,101290.0,0.09733503]
[1734559079456,0.11189211,101300.0,101290.0,0.09733503]
[1734559079661,0.11089211,101300.0,101290.0,0.09733503]
[1734559080360,0.11139211,101300.0,101290.0,0.09733503]
[1734559080554,0.47219211,101300.0,101290.0,0.09733503]
[1734559081153,0.47219211,101300.0,101290.0,0.049396]
[1734559081360,0.47169211,101300.0,101290.0,0.049396]
[1734559081954,0.049396,101290.0,101270.0,0.40285869]
[1734559082155,0.562296,101290.0,101270.0,0.45082516]
[1734559082359,0.5129,101290.0,101280.0,0.0494]
[1734559083056,0.655952,101290.0,101270.0,0.35345569]
[1734559083250,0.503856,101280.0,101270.0,0.40142335]
[1734559083450,0.503856,101280.0,101270.0,0.35345569]
[1734559083656,0.503856,101280.0,101260.0,0.40286569]
[1734559083856,0.3608,101270.0,101260.0,0.5445003]
[1734559084668,0.3608,101270.0,101260.0,0.4508443]
[1734559084971,0.3608,101270.0,101260.0,0.10338861]
[1734559085962,0.3608,101270.0,101260.0,0.10638861]
[1734559087767,0.3608,101270.0,101260.0,0.10438861]
[1734559088762,0.3618,101270.0,101260.0,0.10138861]
[1734559096470,0.3618,101270.0,101260.0,0.10508831]
[1734559098775,0.487705,101270.0,101260.0,0.10508831]
[1734559099471,0.487705,101270.0,101260.0,0.10138861]
[1734559099774,0.659761,101270.0,101260.0,0.004]
[1734559099962,0.566105,101270.0,101260.0,0.004]
[1734559101370,0.659761,101270.0,101260.0,0.004]
[1734559103177,0.566105,101270.0,101260.0,0.004]
[1734559106876,0.71379083,101270.0,101260.0,0.004]
[1734559109880,0.80744683,101270.0,101260.0,0.004]
[1734559110675,0.89112149,101270.0,101260.0,0.004]
[1734559111781,0.50948583,101270.0,101260.0,0.147065]
[1734559111986,0.50948583,101270.0,101260.0,0.379465]
[1734559112182,0.14868583,101270.0,101260.0,0.4274755]
[1734559112380,0.14868583,101270.0,101260.0,0.3338195]
[1734559112778,0.001,101270.0,101260.0,0.3338195]
[1734559114886,0.001,101270.0,101260.0,0.4274755]
[1734559115182,0.001,101270.0,101260.0,0.7882755]
[1734559116184,0.001,101270.0,101260.0,0.79916685]
[1734559116485,0.32501649,101290.0,101280.0,0.0494]
[1734559116679,0.32501649,101290.0,101280.0,0.5518665]
[1734559117682,0.52054007,101300.0,101280.0,0.40215907]
[1734559117879,0.050395,101290.0,101280.0,0.45155707]
[1734559118185,0.504851,101290.0,101280.0,0.40215907]
[1734559118485,0.578751,101290.0,101280.0,0.35414857]
[1734559118675,0.656351,101290.0,101280.0,0.35414857]
[1734559118881,0.656351,101290.0,101260.0,1.00649658]
[1734559119077,0.410201,101280.0,101260.0,1.05459952]
[1734559119589,0.410201,101280.0,101260.0,0.69379952]
[1734559119887,0.410201,101280.0,101260.0,0.68405851]
[1734559120083,0.410201,101280.0,101260.0,0.32990994]
[1734559120284,0.410201,101280.0,101260.0,0.33390994]
[1734559120790,0.411201,101280.0,101260.0,0.33390994]
[1734559121385,0.3618,101280.0,101270.0,0.049405]
[1734559121580,0.001,101280.0,101270.0,0.09750794]
[1734559122782,0.001,101280.0,101270.0,0.10150794]
[1734559122985,0.484095,101290.0,101270.0,0.10150794]
[1734559123283,0.001,101280.0,101270.0,0.19516394]
[1734559123490,0.001,101280.0,101270.0,0.10150794]
[1734559124088,0.4102,101280.0,101270.0,0.05210294]
[1734559124490,0.4102,101280.0,101270.0,0.004]
[1734559124681,0.4112,101280.0,101270.0,0.004]
[1734559124881,0.4112,101280.0,101270.0,0.0500831]
[1734559125081,0.4112,101280.0,101270.0,0.002]
[1734559125290,0.4112,101280.0,101270.0,0.05008286]
[1734559125888,0.4112,101280.0,101270.0,0.002]
[1734559126089,0.4112,101280.0,101270.0,0.0500825]
[1734559126295,0.049408,101270.0,101250.0,0.049411]
[1734559126485,0.410208,101270.0,101250.0,0.049411]
[1734559126681,0.3608,101260.0,101250.0,0.049411]
[1734559126991,0.410208,101270.0,101250.0,0.049411]
[1734559127192,0.410208,101270.0,101260.0,0.049409]
[1734559128997,0.410208,101270.0,101260.0,0.055409]
[1734559129583,0.410208,101270.0,101260.0,0.058409]
[1734559130192,0.42003941,101270.0,101260.0,0.058409]
[1734559130780,0.049414,101250.0,101240.0,0.0005]
[1734559130981,1.323326,101250.0,101240.0,0.0005]
[1734559131190,0.049419,101240.0,101230.0,0.00148138]
[1734559131487,0.410219,101240.0,101230.0,0.00148138]
[1734559131689,0.410219,101240.0,101230.0,0.00518446]
[1734559132190,0.503875,101240.0,101230.0,0.00518446]
[1734559133297,0.504875,101240.0,101230.0,0.01268446]
[1734559133798,0.504875,101240.0,101230.0,0.01198138]
[1734559133799,0.505875,101240.0,101230.0,0.01198138]
[1734559134300,0.505875,101240.0,101230.0,0.01148138]
[1734559134895,0.412219,101240.0,101230.0,0.01148138]
[1734559135394,0.42194677,101240.0,101230.0,0.01198138]
[1734559135691,0.42194677,101240.0,101230.0,0.01568749]
[1734559136396,0.42194677,101240.0,101230.0,0.01518749]
[1734559137297,0.42194677,101240.0,101230.0,0.01568749]
[1734559138401,0.42194677,101240.0,101230.0,0.01518749]
[1734559139401,0.51560277,101240.0,101230.0,0.01568749]
[1734559140199,0.42194677,101240.0,101230.0,0.01568749]
[1734559140405,0.51560277,101240.0,101230.0,0.01518749]
[1734559140790,0.51560277,101240.0,101230.0,0.01518419]
[1734559140997,0.37252777,101240.0,101230.0,0.06460819]